bitfinex/quotes_ETHUSD_20241120
["timestamp","ask_amount","ask_price","bid_price","bid_amount"]
[1732103377954,3.22742,3098.5,3097.9,2.58235]
[1732103378153,3.22742,3098.5,3097.9,2.916335]
[1732103378597,3.22726,3098.6,3098.1,1.29108]
[1732103378890,0.0029,3098.7,3098.1,1.29108]
[1732103380099,0.0029,3098.7,3098.0,0.7882]
[1732103380100,3.22729,3098.6,3098.0,0.7882]
[1732103380306,3.22764,3098.3,3098.0,0.7882]
[1732103380490,3.22784,3098.1,3097.7,0.8195]
[1732103380673,3.22792,3098.0,3097.7,0.8195]
[1732103380879,3.22784,3098.1,3097.8,1.614]
[1732103381263,3.22768,3098.2,3097.8,1.614]
[1732103382506,0.0029,3098.7,3098.5,1.29091]
[1732103382708,0.0029,3098.7,3098.6,1.2909]
[1732103382929,0.0029,3098.7,3098.6,1.32317203]
[1732103383231,0.0029,3098.7,3098.6,1.79488723]
[1732103383728,0.0029,3098.7,3098.6,5.60698723]
[1732103384279,0.0029,3098.7,3098.6,7.22058723]
[1732103384480,0.0029,3098.7,3098.6,7.1883152]
[1732103387659,0.0029,3098.7,3098.6,7.1983152]
[1732103388466,0.0029,3098.7,3098.6,7.2083152]
[1732103390577,0.0029,3098.7,3098.6,7.1883152]
[1732103397130,0.0029,3098.7,3098.6,7.1983152]
[1732103397370,0.0029,3098.7,3098.6,7.2083152]
[1732103397982,0.0029,3098.7,3098.6,5.4583152]
[1732103398167,0.0029,3098.7,3098.6,5.49057526]
[1732103398477,0.0029,3098.7,3098.6,6.78147526]
[1732103398635,0.0029,3098.7,3098.6,6.7492152]
[1732103399779,0.0029,3098.7,3098.6,6.7392152]
[1732103403755,0.0029,3098.7,3098.6,6.7292152]
[1732103405198,0.0029,3098.7,3098.6,6.7392152]
[1732103405394,0.0029,3098.7,3098.6,6.7292152]
[1732103405909,0.0029,3098.7,3098.6,6.7392152]
[1732103407085,0.7639,3099.8,3099.7,1.29044]
[1732103407291,0.7639,3100.4,3100.2,1.29021]
[1732103407584,0.7639,3100.4,3100.1,1.29025]
[1732103407772,0.7639,3100.4,3100.3,1.29019]
[1732103408185,0.7637,3100.6,3100.4,1.29015]
[1732103408793,3.22446,3101.3,3100.4,2.90285]
[1732103409112,0.7637,3100.9,3100.4,2.90285]
[1732103409516,3.22429,3101.5,3100.4,3.68875]
[1732103409673,0.7705,3101.2,3100.4,6.68875]
[1732103411431,0.7653,3101.6,3100.4,7.487644]
[1732103412620,3.2236,3102.2,3100.4,7.497644]
[1732103412922,0.8007,3101.9,3100.4,7.497644]
[1732103413077,5.4e-06,3100.5,3100.4,8.047644]
[1732103414112,5.4e-06,3100.5,3100.4,8.43927274]
[1732103414378,0.8028,3102.3,3101.8,0.96715]
[1732103414890,0.8028,3102.3,3102.0,0.96711]
[1732103415078,0.8028,3102.3,3102.0,0.96709]
[1732103415278,0.8028,3102.3,3101.6,0.0322357]
[1732103415279,0.8028,3102.3,3102.1,0.96708]
[1732103415506,0.8028,3102.3,3102.2,0.96705]
[1732103415705,3.22297,3102.8,3102.2,0.96705]
[1732103415911,0.322297,3102.7,3102.3,0.96701]
[1732103416074,0.7924,3103.0,3102.1,0.96706]
[1732103416075,3.22297,3102.8,3102.1,0.96706]
[1732103416273,0.322297,3102.7,3102.1,0.96706]
[1732103416521,0.322297,3102.7,3101.8,0.03223279]
[1732103416522,0.322297,3102.7,3101.9,1.72263]
[1732103416701,0.36258776,3102.7,3101.9,1.72263]
[1732103416943,0.322297,3102.7,3101.9,1.72263]
[1732103417129,0.3545267,3102.6,3102.1,0.96705]
[1732103417517,0.3545267,3102.6,3102.2,1.6118]
[1732103417932,0.8282,3102.5,3102.2,1.6118]
[1732103418152,3.66397067,3102.4,3102.2,1.6118]
[1732103418354,0.86848993,3102.5,3102.2,1.6118]
[1732103418355,3.22341,3102.3,3102.2,1.6118]
[1732103418889,4.02600422,3102.3,3102.2,1.6118]
[1732103419225,3.98571,3102.3,3102.2,1.6118]
[1732103419457,5.06922988,3102.3,3102.2,1.6118]
[1732103419663,5.61922988,3102.3,3102.2,1.6118]
[1732103419847,8.578933,3102.3,3102.2,1.6118]
[1732103421796,0.8307,3102.0,3100.7,0.99974935]
[1732103422090,0.8307,3102.0,3100.4,0.96761]
[1732103422091,0.8307,3101.2,3100.4,0.96761]
[1732103422251,0.8307,3101.2,3100.2,0.83]
[1732103422252,3.22503,3100.8,3100.1,0.96768]
[1732103422437,3.22503,3100.8,3099.9,1.4155731]
[1732103422438,3.22533,3100.5,3099.9,0.96775]
[1732103422636,0.87101289,3100.7,3099.5,0.39162874]
[1732103422637,3.22518,3100.6,3099.5,1.79789]
[1732103422837,3.22567,3100.2,3100.0,1.6128]
[1732103423235,0.8307,3100.7,3100.0,1.6128]
[1732103423236,3.22519,3100.6,3100.0,1.6128]
[1732103423437,3.22539,3100.4,3100.0,1.6128]
[1732103423643,3.22562,3100.2,3100.0,1.6128]
[1732103423955,0.8307,3100.7,3100.1,0.96769]
[1732103424156,0.8307,3100.7,3100.0,2.58052]
[1732103424409,3.22528,3100.5,3100.0,2.58052]
[1732103424660,3.22568,3100.2,3100.0,1.6128]
[1732103424839,3.22555,3100.3,3100.0,1.6128]
[1732103424840,3.2257,3100.1,3100.0,1.6128]
[1732103425285,4.0213,3100.1,3100.0,1.6128]
[1732103425488,5.07257621,3100.1,3100.0,1.6128]
[1732103427048,0.7956,3100.1,3100.0,1.6128]
[1732103427248,7.20167,3100.5,3100.0,1.6128]
[1732103427453,3.22539,3100.4,3100.0,1.6128]
[1732103427774,3.22556,3100.3,3100.0,1.6128]
[1732103427985,3.2257,3100.1,3100.0,1.6128]
[1732103428277,0.751,3100.5,3100.0,1.6128]
[1732103428278,3.97629,3100.5,3100.0,1.6128]
[1732103428778,3.22559,3100.3,3100.0,1.6128]
[1732103428990,3.22562,3100.2,3100.0,1.6128]
[1732103429342,3.2257,3100.1,3100.0,1.6128]
[1732103429643,3.2254,3100.4,3100.0,1.6128]
[1732103429845,4.0158,3100.8,3100.1,0.9677]
[1732103430141,4.0158,3100.8,3100.2,1.6128]
[1732103430454,3.2252,3100.6,3100.2,1.6128]
[1732103430648,0.7908,3100.8,3100.2,1.6128]
[1732103430974,3.22507,3100.7,3100.2,1.6128]
[1732103431179,3.22547,3100.4,3100.2,1.6128]
[1732103431950,3.22549,3100.3,3100.2,1.6128]
[1732103432296,3.22547,3100.4,3100.2,1.6128]
[1732103432803,3.2253,3100.5,3100.2,1.6128]
[1732103433158,3.22519,3100.6,3100.2,1.6128]
[1732103433504,3.2251,3100.7,3100.2,1.6128]
[1732103434106,0.7908,3100.8,3100.3,0.96762]
[1732103434763,4.01577,3100.8,3100.3,0.96762]
[1732103434959,4.01577,3100.8,3100.2,4.87085]
[1732103435206,7.24083,3100.8,3100.2,4.6128]
[1732103435360,3.22508,3100.7,3100.2,4.6128]
[1732103435801,0.7908,3100.8,3100.3,0.96762]
[1732103436015,0.301,3101.2,3100.5,0.96758]
[1732103436016,4.0349,3101.2,3100.5,0.96758]
[1732103436160,0.8103,3101.2,3100.4,0.7795]
[1732103436366,3.2244,3101.4,3100.7,0.9675]
[1732103436367,3.22445,3101.3,3100.7,0.9675]
[1732103436873,3.22445,3101.3,3100.8,0.96749]
[1732103437273,0.8103,3101.5,3100.5,3.44665586]
[1732103437490,3.22422,3101.6,3101.1,0.96737]
[1732103437491,3.22421,3101.6,3101.1,0.96737]
[1732103438078,3.99108,3101.8,3101.0,0.96742]
[1732103438407,3.2243,3101.5,3101.0,0.96742]
[1732103438577,3.22415,3101.6,3101.0,0.96742]
[1732103439410,3.22415,3101.6,3101.0,1.93482]
[1732103439621,3.22415,3101.6,3101.0,0.9674]
[1732103439792,3.99106,3101.8,3101.1,0.8161]
[1732103440123,3.99106,3101.8,3101.1,2.75085]
[1732103440288,0.399106,3101.7,3101.2,0.96736]
[1732103440488,0.399106,3101.7,3101.3,0.96733]
[1732103440730,4.00863,3102.2,3101.1,0.84834094]
[1732103441022,3.22363,3102.1,3101.6,0.96723]
[1732103441395,4.409493,3102.2,3101.7,0.9672]
[1732103441613,4.409493,3102.2,3101.7,1.612]
[1732103441811,3.6645693,3102.1,3101.7,1.612]
[1732103442126,3.22336,3102.4,3101.7,1.612]
[1732103442422,0.7851,3102.5,3101.7,1.612]
[1732103442423,3.22367,3102.1,3101.7,1.612]
[1732103443024,3.22361,3102.2,3101.7,1.612]
[1732103443248,3.22365,3102.1,3101.7,1.612]
[1732103443431,3.22388,3101.9,3101.7,1.612]
[1732103443732,3.22393,3101.8,3101.7,1.612]
[1732103444283,4.03843,3101.8,3101.7,1.612]
[1732103444523,4.76868498,3101.8,3101.7,1.612]
[1732103445320,5.31868498,3101.8,3101.7,1.612]
[1732103445485,4.76868498,3101.8,3101.7,1.612]
[1732103446701,5.31868498,3101.8,3101.7,1.612]
[1732103447293,6.44764,3102.0,3101.7,1.612]
[1732103447294,3.2238,3102.0,3101.7,1.612]
[1732103447593,3.22368,3102.1,3101.7,1.612]
[1732103447788,0.8228,3102.2,3101.7,1.612]
[1732103447987,3.22343,3102.3,3101.7,1.612]
[1732103448232,3.22343,3102.3,3101.7,2.57918]
[1732103448233,0.644676,3102.2,3101.7,2.57918]
[1732103448452,3.22359,3102.2,3101.7,1.612]
[1732103448622,3.22359,3102.2,3101.7,2.5792]
[1732103448822,3.22334,3102.4,3101.7,2.57919]
[1732103449027,3.2274138,3102.4,3101.9,1.78442]
[1732103449715,0.0040738,3102.4,3101.9,0.8173]
[1732103450146,3.22342,3102.3,3101.9,0.8173]
[1732103450650,3.22342,3102.3,3102.0,1.6119]
[1732103450651,3.22362,3102.1,3102.0,1.6119]
[1732103451156,3.2276938,3102.1,3102.0,1.6119]
[1732103453822,4.0278938,3102.1,3102.0,1.6119]
[1732103454639,4.06819313,3102.1,3102.0,1.6119]
[1732103455042,4.79736444,3102.1,3102.0,1.6119]
[1732103456972,4.75706511,3102.1,3102.0,1.6119]
[1732103457845,4.0278938,3102.1,3102.0,1.6119]
[1732103458639,3.2276938,3102.1,3102.0,1.6119]
[1732103464942,0.0040738,3102.1,3102.0,1.6119]
[1732103465484,3.2276938,3102.1,3102.0,1.6119]
[1732103465691,0.0040738,3102.1,3102.0,1.6119]
[1732103465893,3.2276938,3102.1,3102.0,1.6119]
[1732103466238,0.0040738,3102.1,3102.0,1.6119]
[1732103466545,3.2276938,3102.1,3102.0,1.6119]
[1732103466863,0.0040738,3102.1,3102.0,1.6119]
[1732103467248,0.0040738,3102.1,3102.0,1.77309]
[1732103467449,0.0040738,3102.1,3102.0,3.60493456]
[1732103467758,0.0040738,3102.1,3102.0,6.60493456]
[1732103467951,0.0040738,3102.1,3102.0,6.5727]
[1732103475453,0.0040738,3102.1,3102.0,5.4444]
[1732103475653,0.0040738,3102.1,3102.0,6.41151]
[1732103476209,0.0040738,3102.1,3102.0,5.4444]
[1732103476355,0.0040738,3102.1,3102.0,6.41151]
[1732103478647,0.0040738,3102.1,3102.0,1.6119]
[1732103479805,0.0040738,3102.1,3102.0,2.57901]
[1732103480057,0.0040738,3102.1,3102.0,1.6119]
[1732103480450,0.0040738,3102.1,3102.0,2.57901]
[1732103480983,0.0040738,3102.1,3102.0,1.6119]
[1732103483071,3.2276938,3102.1,3102.0,1.6119]
[1732103483672,4.63484473,3102.1,3102.0,1.6119]
[1732103483875,4.67514275,3102.1,3102.0,1.6119]
[1732103484051,4.63484473,3102.1,3102.0,1.6119]
[1732103488080,4.64484473,3102.1,3102.0,1.6119]
[1732103490562,4.63484473,3102.1,3102.0,1.6119]
[1732103495754,4.64484473,3102.1,3102.0,1.6119]
[1732103497257,4.63484473,3102.1,3102.0,1.6119]
[1732103497683,3.9856938,3102.1,3102.0,1.6119]
[1732103499977,3.2276938,3102.1,3102.0,1.6119]
[1732103500503,0.0040738,3102.1,3102.0,1.6119]
[1732103502961,0.0040738,3102.1,3102.0,2.57901]
[1732103503569,0.0040738,3102.1,3102.0,3.3805437]
[1732103503768,0.0040738,3102.1,3102.0,3.81531207]
[1732103504718,0.0040738,3102.1,3102.0,3.78307837]
[1732103505305,0.1411933,3103.7,3103.2,0.96671]
[1732103505612,3.40345991,3103.7,3103.1,0.96677]
[1732103505912,3.3631733,3103.7,3103.1,0.96677]
[1732103506207,0.1411933,3103.7,3103.1,1.21368]
[1732103506570,0.1411933,3103.7,3103.1,2.18043]
[1732103506793,0.1411933,3103.7,3103.1,1.21366]
[1732103507007,3.3631633,3103.7,3103.1,1.21366]
[1732103507180,3.3631633,3103.7,3103.2,1.141656]
[1732103507569,0.1411933,3103.7,3103.3,0.9667]
[1732103508110,0.1411933,3103.7,3103.3,2.5779]
[1732103508515,0.1411933,3103.7,3103.3,1.6112]
[1732103508870,0.1411933,3103.7,3103.3,2.9498586]
[1732103509071,0.1411933,3103.7,3103.3,3.9165486]
[1732103509512,0.1411933,3103.7,3103.4,0.8283]
[1732103509874,0.1411933,3103.7,3103.5,1.6111]
[1732103510587,0.1411933,3103.7,3103.5,2.57774]
[1732103510821,0.1411933,3103.7,3103.6,0.340604]
[1732103511248,3.3631533,3103.7,3103.6,1.611]
[1732103511457,3.3731533,3103.7,3103.6,1.611]
[1732103512239,3.3631533,3103.7,3103.6,1.611]
[1732103514920,4.7513533,3103.7,3103.6,1.611]
[1732103515143,5.54867463,3103.7,3103.6,1.611]
[1732103516010,8.58895722,3103.7,3103.6,1.611]
[1732103516211,8.54867463,3103.7,3103.6,1.611]
[1732103517853,7.98867463,3103.7,3103.6,1.611]
[1732103521555,7.1913533,3103.7,3103.6,1.611]
[1732103522629,7.7513533,3103.7,3103.6,1.611]
[1732103523357,3.3631533,3103.7,3103.6,1.611]
[1732103525238,0.1411933,3103.7,3103.6,1.611]
[1732103525438,3.3631533,3103.7,3103.6,1.611]
[1732103525831,0.1411933,3103.7,3103.6,1.611]
[1732103526032,3.3631533,3103.7,3103.6,1.611]
[1732103526789,0.1411933,3103.7,3103.6,1.611]
[1732103526930,0.1411933,3103.7,3103.6,2.3887]
[1732103527122,0.1411933,3103.7,3103.6,2.62757]
[1732103527318,0.1411933,3103.7,3103.6,3.59418]
[1732103529657,0.1411933,3103.7,3103.6,2.62757]
[1732103529833,0.1411933,3103.7,3103.6,3.59418]
[1732103530337,0.1411933,3103.7,3103.6,2.62757]
[1732103531343,0.1411933,3103.7,3103.6,3.59418]
[1732103531969,0.1411933,3103.7,3103.6,2.62757]
[1732103532121,0.1411933,3103.7,3103.6,3.59418]
[1732103532324,0.1411933,3103.7,3103.6,2.62757]
[1732103535785,0.1411933,3103.7,3103.6,3.59418]
[1732103537680,0.1411933,3103.7,3103.6,6.59418]
[1732103540044,0.1411933,3103.7,3103.6,2.62757]
[1732103540250,3.3631533,3103.7,3103.6,1.611]
[1732103541910,4.1418533,3103.7,3103.6,1.611]
[1732103543985,7.61580888,3103.7,3103.6,1.611]
[1732103544148,8.70157477,3103.7,3103.6,1.611]
[1732103545486,5.77761919,3103.7,3103.6,1.611]
[1732103545788,4.1418533,3103.7,3103.6,1.611]
[1732103546786,3.3631533,3103.7,3103.6,1.611]
[1732103547948,0.1411933,3103.7,3103.6,2.3986]
[1732103548159,0.1411933,3103.7,3103.6,1.611]
[1732103548160,3.3631533,3103.7,3103.6,1.611]
[1732103548671,4.1841533,3103.7,3103.6,1.611]
[1732103549002,4.92575463,3103.7,3103.6,1.611]
[1732103550218,4.96603466,3103.7,3103.6,1.611]
[1732103550706,4.92575463,3103.7,3103.6,1.611]
[1732103551459,5.48575463,3103.7,3103.6,1.611]
[1732103551660,11.44839073,3103.7,3103.6,1.611]
[1732103551859,3.22331,3102.4,3102.3,0.7636]
[1732103552615,3.22331,3102.4,3101.7,0.7636]
[1732103552899,3.22352,3102.2,3101.7,0.7636]
[1732103553107,3.22365,3102.1,3101.8,0.17630534]
[1732103553455,3.22383,3101.9,3101.8,0.17630534]
[1732103553660,3.22383,3101.9,3101.2,0.97735]
[1732103553661,3.22393,3101.8,3101.3,0.826]
[1732103553911,3.2238,3102.0,3101.4,0.96729]
[1732103554211,3.22354,3102.2,3101.6,0.96723]
[1732103554373,3.22354,3102.2,3101.7,0.9672]
[1732103554580,3.22354,3102.2,3101.8,1.6119]
[1732103555068,3.22354,3102.2,3101.9,0.7582]
[1732103555400,3.22337,3102.4,3102.0,1.6119]
[1732103555612,3.22353,3102.2,3102.0,1.6119]
[1732103555920,3.22362,3102.1,3102.0,1.6119]
[1732103556915,4.07491797,3102.1,3102.0,1.6119]
[1732103557593,4.03462,3102.1,3102.0,1.6119]
[1732103560420,4.58462,3102.1,3102.0,1.6119]
[1732103560597,4.03462,3102.1,3102.0,1.6119]
[1732103560796,4.7946703,3102.1,3102.0,1.6119]
[1732103561322,5.3446703,3102.1,3102.0,1.6119]
[1732103561494,8.39497224,3102.1,3102.0,1.6119]
[1732103561686,8.3546703,3102.1,3102.0,1.6119]
[1732103563593,8.3546703,3102.1,3102.0,1.6119]
[1732103563778,8.3446703,3102.1,3102.0,1.6119]
[1732103564078,7.7946703,3102.1,3102.0,1.6119]
[1732103565514,7.8046703,3102.1,3102.0,1.6119]
[1732103566750,7.7946703,3102.1,3102.0,1.6119]
[1732103569216,3.22362,3102.1,3102.0,1.6119]
[1732103569425,3.97761,3102.7,3102.0,1.6119]
[1732103569645,3.2234,3102.4,3102.0,1.77309]
[1732103569956,3.22338,3102.4,3102.1,0.7824]
[1732103570106,6.44679,3102.4,3102.1,0.7824]
[1732103570307,3.22338,3102.4,3102.1,0.7824]
[1732103570610,3.22291,3102.8,3102.1,0.7824]
[1732103570812,3.22349,3102.3,3102.1,0.7824]
[1732103571132,3.22349,3102.3,3102.2,1.6118]
[1732103571731,4.04908502,3102.3,3102.2,1.6118]
[1732103572055,4.00879,3102.3,3102.2,1.6118]
[1732103577641,4.04908762,3102.3,3102.2,1.6118]
[1732103578519,3.22349,3102.3,3102.2,1.6118]
[1732103579721,3.86817,3102.3,3102.2,1.6118]
[1732103580118,3.90846759,3102.3,3102.2,1.6118]
[1732103580324,3.86817,3102.3,3102.2,1.6118]
[1732103582919,3.22349,3102.3,3102.2,1.6118]
[1732103583823,3.22341,3102.3,3102.2,1.6118]
[1732103584129,3.22331,3102.4,3102.2,1.6118]
[1732103584344,0.82939473,3103.1,3102.2,1.6118]
[1732103584532,3.22316,3102.6,3102.3,0.8217]
[1732103584958,3.22327,3102.5,3102.3,0.8217]
[1732103585158,3.22316,3102.6,3102.3,0.8217]
[1732103585366,3.2232,3102.5,3102.3,0.8217]
[1732103585520,3.22296,3102.8,3102.3,0.8217]
[1732103585727,3.223,3102.7,3102.3,2.35439]
[1732103586046,3.223,3102.7,3102.4,1.6117]
[1732103587178,3.22284,3102.9,3102.4,1.6117]
[1732103587345,3.22289,3102.8,3102.4,1.6117]
[1732103588059,3.0,3103.1,3102.4,1.6117]
[1732103588361,3.22303,3102.7,3102.4,1.6117]
[1732103589082,3.22301,3102.7,3102.4,1.6117]
[1732103589283,3.223,3102.7,3102.4,1.6117]
[1732103590259,3.22319,3102.6,3102.4,1.6117]
[1732103590588,3.2232,3102.5,3102.4,1.6117]
[1732103590900,6.44638,3102.6,3102.4,1.6117]
[1732103591399,3.2232,3102.5,3102.4,1.6117]
[1732103591688,3.22319,3102.6,3102.4,1.6117]
[1732103592004,3.22319,3102.6,3102.4,1.85504]
[1732103592195,3.2231,3102.6,3102.5,0.7553]
[1732103592702,3.2231,3102.6,3102.4,1.6117]
[1732103592851,3.2232,3102.5,3102.4,1.6117]
[1732103593053,3.26349145,3102.5,3102.4,1.6117]
[1732103593280,3.9121506,3102.5,3102.4,1.6117]
[1732103593478,3.87185915,3102.5,3102.4,1.6117]
[1732103596760,3.91215342,3102.5,3102.4,1.6117]
[1732103597261,3.87185915,3102.5,3102.4,1.6117]
[1732103598745,3.2232,3102.5,3102.4,1.6117]
[1732103600008,3.2232,3102.5,3102.4,2.4273]
[1732103601096,3.26349081,3102.5,3102.4,1.6117]
[1732103601304,3.2232,3102.5,3102.4,1.6117]
[1732103603429,3.86783,3102.5,3102.4,1.6117]
[1732103605513,3.90812395,3102.5,3102.4,1.6117]
[1732103606132,3.86783,3102.5,3102.4,1.6117]
[1732103606703,3.86783,3102.5,3102.4,4e-05]
[1732103606704,11.13478023,3102.5,3102.4,4e-05]
[1732103606909,11.10448558,3102.5,3102.4,4e-05]
[1732103607989,0.822,3102.2,3101.2,0.7826]
[1732103608192,3.22445,3101.3,3101.2,0.7826]
[1732103612092,3.22435,3101.4,3101.2,0.7826]
[1732103612343,3.22429,3101.5,3101.2,0.7826]
[1732103613354,3.22419,3101.6,3101.2,0.7826]
[1732103613520,3.22397,3101.8,3101.3,0.7681]
[1732103613521,3.22399,3101.8,3101.3,0.7681]
[1732103613734,3.22386,3101.9,3101.5,0.7563]
[1732103613941,3.22372,3102.1,3101.6,0.2046]
[1732103614147,1.62308994,3104.0,3101.5,2.04599]
[1732103614148,6.44697,3102.3,3101.7,0.7563]
[1732103614314,3.22356,3102.2,3101.7,1.72351]
[1732103614655,3.22356,3102.2,3101.7,0.7563]
[1732103614806,3.22356,3102.2,3101.8,0.7563]
[1732103615010,3.22356,3102.2,3101.9,0.172349]
[1732103615207,0.8314,3102.9,3101.8,1.72347]
[1732103615208,3.22348,3102.3,3101.8,1.72347]
[1732103615459,3.22352,3102.2,3101.8,0.7563]
[1732103615745,3.22336,3102.4,3101.9,1.13949]
[1732103615949,3.22326,3102.5,3101.9,0.96712]
[1732103616255,3.22336,3102.4,3102.0,0.8145]
[1732103616412,3.2231,3102.6,3102.0,0.8145]
[1732103616923,3.22331,3102.4,3102.0,0.8145]
[1732103617124,3.22331,3102.4,3102.1,0.178162]
[1732103617517,6.44631,3102.6,3102.1,0.178162]
[1732103617719,3.22287,3102.9,3102.0,1.78159]
[1732103617944,3.22308,3102.7,3102.1,0.96706]
[1732103618113,3.22305,3102.7,3102.3,0.7849]
[1732103618314,3.22299,3102.7,3102.3,0.7849]
[1732103618746,3.22316,3102.6,3102.3,0.7849]
[1732103619053,0.788,3103.2,3102.3,0.7849]
[1732103619255,3.22321,3102.5,3102.3,0.7849]
[1732103620168,3.22311,3102.6,3102.3,0.7849]
[1732103620311,3.22284,3102.9,3102.3,0.7849]
[1732103620512,3.22284,3102.9,3102.3,1.75192]
[1732103620741,3.22291,3102.8,3102.3,1.75192]
[1732103621130,3.0,3102.9,3102.4,0.96698]
[1732103621310,6.22284,3102.9,3102.3,0.7849]
[1732103621514,3.22306,3102.7,3102.4,1.6116]
[1732103622126,3.22316,3102.6,3102.4,1.6116]
[1732103623462,3.26289992,3103.1,3102.4,1.6116]
[1732103623635,3.22317,3102.6,3102.4,1.6116]
[1732103624341,3.2232,3102.5,3102.4,1.6116]
[1732103626866,9.68715558,3102.5,3102.4,1.6116]
[1732103628034,6.68715558,3102.5,3102.4,1.6116]
[1732103628247,7.75681814,3102.5,3102.4,1.6116]
[1732103628549,11.52591814,3102.5,3102.4,1.6116]
[1732103629064,8.61196256,3102.5,3102.4,1.6116]
[1732103632042,8.06196256,3102.5,3102.4,1.6116]
[1732103632264,4.29286256,3102.5,3102.4,1.6116]
[1732103632575,3.2232,3102.5,3102.4,1.6116]
[1732103638047,3.8248,3103.0,3102.4,1.6116]
[1732103638244,3.22306,3102.7,3102.4,1.6116]
[1732103639352,0.8148,3103.2,3102.5,0.787]
[1732103639568,0.8148,3103.6,3102.6,1.23900196]
[1732103639750,3.22248,3103.2,3102.7,0.7762]
[1732103640094,3.22264,3103.1,3102.7,0.7762]
[1732103640390,3.22277,3103.0,3102.8,1.6114]
[1732103640575,3.22264,3103.1,3102.8,1.6114]
[1732103641496,6.44529,3103.1,3102.8,1.6114]
[1732103641657,3.2224,3103.3,3102.8,1.6114]
[1732103641989,3.2224,3103.3,3102.8,2.57825]
[1732103642499,3.2225,3103.2,3102.8,1.6114]
[1732103642922,3.22224,3103.5,3102.8,2.57824]
[1732103643079,0.1411933,3103.7,3102.8,1.6114]
[1732103643411,3.22243,3103.3,3102.8,2.57826]
[1732103643611,3.22223,3103.5,3102.8,2.57826]
[1732103643914,3.22229,3103.4,3102.9,1.79512]
[1732103644072,3.22212,3103.6,3103.0,0.96679]
[1732103644268,3.22212,3103.6,3103.0,2.57808]
[1732103644611,3.22212,3103.6,3103.2,0.8283]
[1732103644768,3.2222,3103.5,3103.3,1.6112]
[1732103644976,3.22212,3103.6,3103.3,1.6112]
[1732103645310,3.22217,3103.5,3103.3,1.6112]
[1732103645487,3.22227,3103.4,3103.3,1.6112]
[1732103646096,3.22217,3103.5,3103.3,1.6112]
[1732103646325,3.22227,3103.4,3103.3,1.6112]
[1732103647395,0.1411933,3103.7,3103.3,1.6112]
[1732103647728,3.22216,3103.5,3103.4,0.7575]
[1732103648223,3.22216,3103.5,3103.4,2.3686]
[1732103650510,3.22216,3103.5,3103.4,1.6111]
[1732103650710,3.88070133,3103.5,3103.4,1.6111]
[1732103652528,3.22216,3103.5,3103.4,1.6111]
[1732103653394,3.3632033,3103.7,3103.4,1.6111]
[1732103654024,0.1411933,3103.7,3103.5,0.7983]
[1732103654209,3.3631733,3103.7,3103.5,0.7983]
[1732103654905,0.1411933,3103.7,3103.6,0.96661]
[1732103655618,0.1411933,3103.7,3103.6,1.77441]
[1732103655840,0.1411933,3103.7,3103.6,3.38541]
[1732103657752,0.1411933,3103.7,3103.6,2.4136]
[1732103657899,0.1411933,3103.7,3103.6,2.680054]
[1732103658405,3.3631533,3103.7,3103.6,1.611]
[1732103658939,0.1411933,3103.7,3103.6,1.611]
[1732103659107,3.3631533,3103.7,3103.6,1.611]
[1732103659839,0.1411933,3103.7,3103.6,1.611]
[1732103660005,3.3631533,3103.7,3103.6,1.611]
[1732103660211,0.1411933,3103.7,3103.6,2.3969]
[1732103660414,0.1411933,3103.7,3103.6,2.733253]
[1732103661001,0.1411933,3103.7,3103.6,3.699863]
[1732103661203,0.1411933,3103.7,3103.6,2.733253]
[1732103662675,0.1411933,3103.7,3103.6,2.49051941]
[1732103663301,0.1411933,3103.7,3103.6,1.36826641]
[1732103663755,3.3631533,3103.7,3103.6,1.36826641]
[1732103668311,0.1411933,3103.7,3103.6,1.36826641]
[1732103668647,3.3631533,3103.7,3103.6,1.36826641]
[1732103680974,4.1811533,3103.7,3103.6,1.36826641]
[1732103681115,4.92246163,3103.7,3103.6,1.36826641]
[1732103681742,3.22299,3102.7,3102.5,0.7911]
[1732103681927,0.322299,3102.6,3102.1,0.7911]
[1732103682231,0.7968,3102.9,3102.1,0.7911]
[1732103682232,0.04029088,3102.8,3102.1,0.7911]
[1732103682420,3.22373,3102.0,3101.7,0.8092]
[1732103682616,3.22364,3102.1,3101.7,0.8092]
[1732103682932,3.22351,3102.2,3101.7,1.77641]
[1732103683514,3.22368,3102.1,3101.7,0.8092]
[1732103683941,3.22383,3101.9,3101.7,0.8092]
[1732103684141,3.224,3101.8,3101.2,0.97736]
[1732103684313,3.224,3101.8,3101.3,0.174906]
[1732103684516,3.627273,3102.3,3101.3,0.174906]
[1732103684750,3.22395,3101.8,3101.3,0.174906]
[1732103685164,3.22404,3101.7,3101.4,1.6121]
[1732103686963,3.22424,3101.5,3101.4,1.6121]
[1732103688489,4.701478,3101.5,3101.4,1.6121]
[1732103688814,7.65574105,3101.5,3101.4,1.6121]
[1732103689022,7.61543358,3101.5,3101.4,1.6121]
[1732103689561,11.18543358,3101.5,3101.4,1.6121]
[1732103691279,11.18543358,3101.5,3100.2,0.8146]
[1732103691280,3.22549,3100.3,3100.2,0.8146]
[1732103692023,6.45071,3100.5,3100.2,0.8146]
[1732103692253,3.22535,3100.5,3100.2,0.8146]
[1732103692814,3.22479,3101.0,3100.4,0.96759]
[1732103692924,3.22455,3101.2,3100.5,0.81484793]
[1732103693129,3.22483,3101.0,3100.6,0.17824379]
[1732103693835,3.22497,3100.8,3100.5,0.7826]
[1732103694632,3.22478,3101.0,3100.5,0.7826]
[1732103694833,3.22487,3100.9,3100.5,0.7826]
[1732103695741,3.0,3101.5,3100.5,0.7826]
[1732103695742,3.22508,3100.7,3100.5,0.7826]
[1732103697472,3.22492,3100.9,3100.5,0.7826]